lending/lending_fUSD_20251018
["ID","MTS","AMOUNT","RATE_DAILY","PERIOD"]
[391717060,1760745604944,500.0,0.00032066,30]
[391717061,1760745613434,500.0,0.00032068,30]
[391717067,1760745756276,1251.19,0.00024747,120]
[391717104,1760746232143,-250.0,0.00017,2]
[391717105,1760746232154,-254.32599035,0.00017125,2]
[391717106,1760746232163,-250.0,0.0001725,2]
[391717107,1760746232173,-196.00728717,0.000187,2]
[391717108,1760746232182,-250.0,0.000187,2]
[391717109,1760746232192,-301.69582067,0.000187,2]
[391717110,1760746232201,-195.0,0.000187,2]
[391717111,1760746232211,-2500.0,0.000187,2]
[391717112,1760746232220,-300.0,0.000187,2]
[391717113,1760746232230,-160.0,0.00018893,2]
[391717114,1760746232240,-36.23218567,0.00019,2]
[391717117,1760746232252,-263.76781433,0.00019,2]
[391717118,1760746232261,-35.09218567,0.00019368,2]
[391717119,1760746232273,-114.90781433,0.00019368,2]
[391717120,1760746232283,-150.0,0.00019887,2]
[391717121,1760746232292,-300.0,0.00019887,2]
[391717122,1760746232302,-151.0,0.00019888,2]
[391717123,1760746232311,-151.0,0.00019888,2]
[391717124,1760746232321,-151.0,0.00019888,2]
[391717125,1760746232331,-93.57615087,0.00019888,2]
[391717126,1760746232344,-57.42384913,0.00019888,2]
[391717127,1760746232355,-151.0,0.00019888,2]
[391717128,1760746232365,-151.0,0.00019888,2]
[391717129,1760746232374,-151.0,0.00019888,2]
[391717130,1760746232384,-151.0,0.00019888,2]
[391717131,1760746232395,-151.0,0.00019888,2]
[391717132,1760746232404,-151.0,0.00019888,2]
[391717134,1760746232414,-108.06908131,0.00019888,2]
[391717138,1760746232438,-183.49675954,0.00019888,2]
[391717139,1760746232447,-151.0,0.00019888,2]
[391717141,1760746232457,-151.0,0.00019888,2]
[391717144,1760746232467,-151.0,0.00019888,2]
[391717145,1760746232476,-151.0,0.00019888,2]
[391717147,1760746232486,-151.0,0.00019888,2]
[391717149,1760746232496,-151.0,0.00019888,2]
[391717151,1760746232505,-200.0,0.00019888,2]
[391717152,1760746232515,-200.0,0.00019888,2]
[391717154,1760746232525,-5349.62767372,0.000199,2]
[391717156,1760746232534,-475.6557911,0.00019904,2]
[391717158,1760746232544,-5349.62767372,0.000201,2]
[391717159,1760746232554,-5349.62767372,0.000203,2]
[391717160,1760746232563,-200.0,0.00020436,2]
[391717161,1760746232573,-200.0,0.00020436,2]
[391717162,1760746232583,-5349.62767372,0.000205,2]
[391717163,1760746232592,-5349.62767372,0.000207,2]
[391717164,1760746232602,-5349.62767372,0.000209,2]
[391717165,1760746232611,-200.0,0.00020984,2]
[391717166,1760746232620,-200.0,0.00020984,2]
[391717167,1760746232630,-350.0,0.00021,2]
[391717168,1760746232639,-5349.62767372,0.000211,2]
[391717169,1760746232649,-5349.62767372,0.000213,2]
[391717170,1760746232659,-200.0,0.00021532,2]
[391717171,1760746232668,-5349.62767372,0.000216,2]
[391717172,1760746232677,-5349.62767372,0.000218,2]
[391717173,1760746232687,-600.0,0.00021918,2]
[391717174,1760746232696,-250.0,0.00022342,2]
[391717175,1760746232705,-600.0,0.00022466,2]
[391717176,1760746232715,-151.0,0.00022521,7]
[391717177,1760746232724,-10957.59,0.00022524,2]
[391717178,1760746232734,-18636.76,0.00022746,2]
[391717179,1760746232743,-400.0,0.00023,2]
[391717180,1760746232752,-600.0,0.00023014,2]
[391717181,1760746232761,-166.66,0.00023249,2]
[391717182,1760746232771,-166.66,0.00024016,2]
[391717183,1760746232780,-150.0,0.00024444,2]
[391717184,1760746232789,-150.0,0.00024444,2]
[391717185,1760746232799,-266.56,0.000245,2]
[391717186,1760746232808,-166.66,0.00024784,2]
[391717187,1760746232818,-199.79,0.00024792,2]
[391717188,1760746232827,-477.30516941,0.00024795,2]
[391717189,1760746232837,-2700.27661575,0.00024796,2]
[391717190,1760746232846,-4968.50897299,0.00024796,2]
[391717191,1760746232855,-5000.0,0.0002483,2]
[391717192,1760746232865,-500.0,0.00024932,2]
[391717193,1760746232874,-500.0,0.00024932,2]
[391717194,1760746232887,-500.0,0.00024932,2]
[391717195,1760746232897,-500.0,0.00024932,2]
[391717196,1760746232907,-450.0,0.00025,2]
[391717197,1760746232919,-1007.38,0.00025,2]
[391717198,1760746232928,-1007.38,0.000255,2]
[391717199,1760746232937,-166.66,0.00025551,2]
[391717200,1760746232947,-150.0,0.00025874,2]
[391717201,1760746232956,-4140.87776621,0.00025957,2]
[391717202,1760746233153,-859.12223379,0.00025957,2]
[391717203,1760746233163,-168.737,0.00026295,13]
[391717204,1760746233172,-2748.923,0.00026295,13]
[391717205,1760746233182,-166.66,0.00026319,2]
[391717206,1760746233192,-500.0,0.00026582,2]
[391717207,1760746233202,-500.0,0.00026582,2]
[391717208,1760746233211,-300.0,0.00026647,2]
[391717209,1760746233222,-2841.477843,0.00027,2]
[391717210,1760746233231,-475.33669924,0.00027,3]
[391717211,1760746233240,-500.0,0.00027,2]
[391717212,1760746233250,-6893.20324962,0.0002703,2]
[391717213,1760746233259,-311.776617,0.0002703,2]
[391717214,1760746233269,-166.66,0.00027086,2]
[391717215,1760746233278,-678.44,0.00027113,2]
[391717216,1760746233288,-500.0,0.00027122,2]
[391717217,1760746233298,-174.92187612,0.00027122,2]
[391717218,1760746233307,-237.30794098,0.00027122,2]
[391717219,1760746233316,-325.23750193,0.00027123,2]
[391717220,1760746233329,-3298.35249807,0.00027123,2]
[391717221,1760746233339,-11677.58231973,0.00027123,2]
[391717223,1760746238011,-4408.59937203,0.0002703,2]
[391717224,1760746238171,-885.69352486,0.0002703,2]
[391717225,1760746238183,-325.80425152,0.0002703,2]
[391717226,1760746238199,-728.96840426,0.0002703,2]
[391717227,1760746238209,-6091.13397411,0.00027123,2]
[391717228,1760746238229,-450.58499,0.00027123,2]
[391717230,1760746238286,-1935.2663199,0.00027123,2]
[391717326,1760746240088,-9040.51948404,0.00027123,2]
[391717327,1760746240100,-5799.5,0.00027123,2]
[391717328,1760746240115,-591.24801835,0.00027123,2]
[391717329,1760746240300,-119751.89323044,0.00027123,2]
[391717330,1760746240375,-1639.53951054,0.00027123,2]
[391717331,1760746240566,-106568.57712523,0.00027123,2]
[391717332,1760746240576,-500.0,0.0002713,2]
[391717333,1760746240585,-666.0,0.0002724,3]
[391717334,1760746240595,-1251.19,0.0002784,120]
[391717335,1760746240604,-300.0,0.00028017,2]
[391717336,1760746240614,-6893.20324956,0.00028304,2]
[391717337,1760746240623,-6349.06555267,0.00028304,2]
[391717338,1760746240633,-153.0,0.00028443,2]
[391717339,1760746240642,-153.0,0.00028443,2]
[391717340,1760746240652,-550.0,0.00029,2]
[391717341,1760746240661,-382.6706751,0.00029499,15]
[391717342,1760746240671,-6893.20324956,0.00029579,2]
[391717343,1760746240681,-311.77661694,0.00029583,2]
[391717344,1760746240690,-2000.0,0.000296,2]
[391717345,1760746240700,-1096.29,0.00029627,2]
[391717346,1760746240709,-1000.0,0.000299,2]
[391717347,1760746240719,-6893.20324956,0.00030853,2]
[391717348,1760746240729,-1251.19,0.00030933,120]
[391717349,1760746240739,-152.0,0.00031,120]
[391717350,1760746240748,-164.0,0.00031,2]
[391717352,1760746240757,-151.0,0.00031,120]
[391717353,1760746240766,-150.0,0.00031071,2]
[391717354,1760746240776,-500.0,0.00031071,2]
[391717355,1760746240785,-150.0,0.00031071,2]
[391717356,1760746240794,-500.0,0.00031071,2]
[391717357,1760746240803,-500.0,0.00031071,2]
[391717358,1760746240812,-500.0,0.00031071,2]
[391717359,1760746240822,-150.0,0.00031071,2]
[391717360,1760746240833,-500.0,0.00031071,2]
[391717361,1760746240843,-150.0,0.00031071,2]
[391717362,1760746240852,-150.0,0.00031071,2]
[391717363,1760746240865,-150.0,0.00031071,2]
[391717364,1760746240881,-500.0,0.00031071,2]
[391717365,1760746240891,-500.0,0.00031071,2]
[391717366,1760746240901,-150.0,0.00031071,2]
[391717367,1760746240910,-150.0,0.00031071,2]
[391717368,1760746240920,-150.0,0.00031096,120]
[391717369,1760746240929,-150.0,0.00031126,2]
[391717370,1760746240939,-500.0,0.00031126,2]
[391717371,1760746240948,-200.0,0.00031126,2]
[391717372,1760746240959,-500.0,0.00031126,2]
[391717373,1760746240969,-500.0,0.00031126,2]
[391717374,1760746240979,-500.0,0.00031126,2]
[391717375,1760746240988,-150.0,0.00031126,2]
[391717376,1760746240998,-500.0,0.00031126,2]
[391717377,1760746241007,-173.96283758,0.00031126,2]
[391717378,1760746241017,-150.0,0.00031126,2]
[391717379,1760746241027,-150.0,0.00031126,2]
[391717380,1760746241036,-578.14792994,0.00031126,2]
[391717381,1760746241046,-500.0,0.00031126,2]
[391717382,1760746241056,-150.47939638,0.00031181,2]
[391717383,1760746241066,-340.16573468,0.00031181,2]
[391717384,1760746241075,-500.0,0.00031181,2]
[391717385,1760746241085,-500.0,0.00031181,2]
[391717386,1760746241094,-500.0,0.00031181,2]
[391717387,1760746241103,-150.0,0.00031181,2]
[391717388,1760746241112,-500.0,0.00031181,2]
[391717389,1760746241122,-223.8937127,0.00031181,2]
[391717390,1760746241131,-150.0,0.00031181,2]
[391717391,1760746241141,-500.0,0.00031181,2]
[391717392,1760746241150,-150.0,0.0003121,120]
[391717393,1760746241160,-500.0,0.00031235,2]
[391717394,1760746241170,-500.0,0.00031235,2]
[391717395,1760746241179,-500.0,0.00031235,2]
[391717396,1760746241188,-154.53232735,0.00031235,2]
[391717397,1760746241363,-500.0,0.00031235,2]
[391717398,1760746241372,-151.78574834,0.00031235,2]
[391717399,1760746241383,-500.0,0.00031235,2]
[391717400,1760746241394,-500.0,0.0003129,2]
[391717401,1760746241403,-500.0,0.0003129,2]
[391717402,1760746241413,-500.0,0.0003129,2]
[391717403,1760746241423,-610.64745741,0.0003129,2]
[391717404,1760746241432,-407.23852358,0.0003129,2]
[391717405,1760746241441,-382.67067504,0.00031321,15]
[391717406,1760746241450,-167.15721943,0.00031345,2]
[391717407,1760746241459,-500.0,0.00031345,2]
[391717408,1760746241469,-500.0,0.00031345,2]
[391717409,1760746241478,-150.0,0.00031373,120]
[391717410,1760746241487,-500.0,0.000314,2]
[391717411,1760746241496,-500.0,0.000314,2]
[391717412,1760746241505,-500.0,0.00031455,2]
[391717413,1760746241514,-500.0,0.00031455,2]
[391717414,1760746241523,-500.0,0.00031509,2]
[391717415,1760746241532,-500.0,0.00031509,2]
[391717416,1760746241541,-500.0,0.00031564,2]
[391717417,1760746241551,-500.0,0.00031564,2]
[391717418,1760746241561,-463.6994922,0.00031619,2]
[391717419,1760746241571,-500.0,0.00031619,2]
[391717420,1760746241580,-376.4879534,0.00031663,4]
[391717421,1760746241589,-500.0,0.00031674,2]
[391717422,1760746241599,-500.0,0.00031729,2]
[391717423,1760746241608,-678.44,0.00031753,2]
[391717424,1760746241628,-1021.39320937,0.00031762,2]
[391717425,1760746241639,-3824.68836297,0.00031763,30]
[391717426,1760746241649,-79222.93831158,0.00031763,2]
[391717541,1760746262378,500.0,0.0002189,120]
[391717542,1760746262474,500.0,0.00024172,120]
[391717685,1760746868077,-395.31,0.00013699,2]
[391717686,1760746868100,-500.0,0.00014268,3]
[391717687,1760746868124,-4.69,0.00014838,3]
[391718070,1760747432220,-500.0,0.00014999,3]
[391718071,1760747432230,-281.12148979,0.00015458,3]
[391718074,1760747432284,-218.87851021,0.00015458,3]
[391718075,1760747432294,-500.0,0.00015458,3]
[391718076,1760747432304,-151.0,0.000157,2]
[391718077,1760747432313,-151.0,0.00015737,2]
[391718078,1760747432323,-151.0,0.00015753,2]
[391718079,1760747432332,-151.0,0.0001576,2]
[391718080,1760747432342,-151.0,0.00015765,2]
[391718082,1760747432354,-1200.0,0.00016199,2]
[391718083,1760747432364,-5000.00113981,0.000162,5]
[391718085,1760747432373,-500.0,0.00016393,3]
[391718086,1760747432382,-300.0,0.00016498,2]
[391718087,1760747432392,-500.0,0.00016499,3]
[391718089,1760747432401,-250.0,0.00016499,2]
[391718090,1760747432410,-250.0,0.00017,2]
[391718091,1760747432419,-638.18260174,0.00017796,2]
[391718098,1760747432620,-1041.81739826,0.00017796,2]
[391718100,1760747432631,-300.0,0.00017999,2]
[391718102,1760747432640,-2233.21601273,0.00018,2]
[391718103,1760747432659,-1310.27893922,0.00018,2]
[391718129,1760747438177,-4408.06575585,0.00018,2]
[391718130,1760747438187,-2700.27661575,0.00018,2]
[391718131,1760747438197,-4640.0,0.00018695,2]
[391718132,1760747438207,-300.0,0.00019,2]
[391718133,1760747438217,-4590.47024678,0.00019033,2]
[391718134,1760747438227,-166.66,0.00019457,2]
[391718135,1760747438238,-671.0,0.00019551,2]
[391718136,1760747438249,-420.0,0.00019639,2]
[391718137,1760747438259,-166.66,0.00019867,2]
[391718138,1760747438269,-234.6996374,0.000199,2]
[391718139,1760747438279,-402.20060173,0.000199,2]
[391718140,1760747438288,-298.21119855,0.000199,2]
[391718141,1760747438298,-160.79,0.0002,2]
[391718142,1760747438308,-402.20060173,0.000201,2]
[391718143,1760747438318,-298.21119855,0.000201,2]
[391718144,1760747438328,-395.31,0.00020187,2]
[391718145,1760747438339,-166.66,0.00020276,2]
[391718146,1760747438349,-402.20060173,0.000203,2]
[391718147,1760747438360,-298.21119855,0.000203,2]
[391718148,1760747438370,-402.20060173,0.000205,2]
[391718149,1760747438380,-298.21119855,0.000205,2]
[391718150,1760747438390,-175.0,0.000205,2]
[391718151,1760747438400,-166.66,0.00020686,2]
[391718152,1760747438410,-402.20060173,0.000207,2]
[391718154,1760747438420,-298.21119855,0.000207,2]
[391718155,1760747438430,-388.71,0.0002076,2]
[391718157,1760747438440,-166.66,0.00021096,2]
[391718159,1760747438450,-5920.65,0.00021333,2]
[391718161,1760747438460,-2686.78,0.00021415,2]
[391718163,1760747438470,-166.66,0.00021505,2]
[391718164,1760747438480,-151.0,0.00021599,2]
[391718166,1760747438491,-57589.26112748,0.00021602,2]
[391718168,1760747438508,-693.51996325,0.00021602,2]
[391718169,1760747438540,-6253.03136083,0.00021602,2]
[391718170,1760747438553,-3139.47638304,0.00021602,2]
[391718215,1760747443504,-151.0,0.00015716,2]
[391718216,1760747443517,-6194.25782016,0.00021602,2]
[391718361,1760747556372,214.16,0.00011483,2]
[391718632,1760748410630,151.0,0.00027397,120]
[391718645,1760748490249,206.0,0.00027397,120]
[391718646,1760748511321,1140.47,0.00026,120]
[391718676,1760748631426,-151.0,0.00015646,2]
[391718677,1760748631436,-151.0,0.00015651,2]
[391718678,1760748631445,-500.0,0.00015665,3]
[391718679,1760748631456,-495.31,0.00015819,3]
[391718680,1760748631465,-180.0,0.00017,2]
[391718681,1760748631475,-154.63452198,0.00017128,2]
[391718682,1760748631484,-500.0,0.00017211,3]
[391718683,1760748631494,-500.0,0.00017228,3]
[391718684,1760748631503,-500.0,0.00017231,3]
[391718685,1760748631513,-928.0,0.00018695,2]
[391718686,1760748631523,-310.97,0.0001879,2]
[391718687,1760748631532,-1140.47,0.00018909,2]
[391718688,1760748631542,-874.55935733,0.00018936,2]
[391718689,1760748631551,-1200.0,0.00019177,2]
[391718690,1760748631561,-151.0,0.00019178,2]
[391718691,1760748631570,-4000.0,0.00019178,2]
[391718692,1760748631580,-874.55935733,0.00019209,2]
[391718693,1760748631589,-3448.97,0.00019356,2]
[391718694,1760748631599,-874.55935733,0.00019622,2]
[391718695,1760748631608,-156.587,0.00019726,2]
[391718696,1760748631618,-874.55935733,0.00019755,2]
[391718697,1760748631627,-180.0,0.000199,2]
[391718698,1760748631636,-291.15865652,0.000199,2]
[391718699,1760748631646,-7268.08159833,0.0002,2]
[391718700,1760748631655,-874.55935733,0.00020019,2]
[391718701,1760748631664,-7268.08159833,0.000202,2]
[391718702,1760748631674,-475.6557911,0.00020231,2]
[391718703,1760748631683,-264.0,0.00020237,2]
[391718705,1760748631693,-162.380719,0.00020274,2]
[391718707,1760748631703,-7268.08159833,0.000204,2]
[391718708,1760748631712,-154.63452198,0.00020436,2]
[391718711,1760748631722,-6302.3092185,0.00020473,2]
[391718713,1760748631731,-874.55935733,0.00020485,2]
[391718715,1760748631740,-151.0,0.00020533,2]
[391718717,1760748631750,-151.0,0.00020533,2]
[391718719,1760748631759,-151.0,0.00020533,2]
[391718721,1760748631769,-1000.0,0.00020535,2]
[391718723,1760748631778,-500.0,0.00020535,2]
[391718724,1760748631788,-500.0,0.00020535,2]
[391718725,1760748631797,-455.07796412,0.00020535,2]
[391718726,1760748631807,-493.0878432,0.00020535,2]
[391718727,1760748631816,-500.0,0.00020535,2]
[391718728,1760748631827,-293.47182273,0.00020535,2]
[391718729,1760748631836,-617.24487498,0.00020536,2]
[391718730,1760748631845,-2216.7375564,0.00020536,2]
[391718731,1760748631854,-85368.61439403,0.00020536,2]
[391718732,1760748631879,-3651.27034911,0.00020536,2]
[391718749,1760748639561,-151.0,0.00015636,2]
[391718750,1760748639571,-1002.58263303,0.00020536,2]
[391718751,1760748639782,-19572.38105243,0.00020536,2]
[391718752,1760748639791,-595.1306776,0.00020536,2]
[391718753,1760748639804,-2484.25448649,0.00020536,2]
[391718754,1760748639824,-173.4771277,0.00020536,2]
[391718755,1760748639839,-13357.9115439,0.00020536,2]
[391718756,1760748639849,-5854.762599,0.00020536,2]
[391718757,1760748639858,-33402.1784878,0.00020536,2]
[391718758,1760748639869,-501.72250272,0.00020573,2]
[391718759,1760748639879,-500.0,0.00020573,2]
[391718760,1760748639888,-500.0,0.00020573,2]
[391718762,1760748639897,-461.00697767,0.00020573,2]
[391718764,1760748639907,-500.0,0.00020573,2]
[391718766,1760748639915,-503.29903749,0.00020573,2]
[391718768,1760748639925,-500.0,0.00020573,2]
[391718770,1760748639936,-502.3609862,0.00020573,2]
[391718771,1760748639946,-500.0,0.00020573,2]
[391718773,1760748639957,-7268.08159833,0.000206,2]
[391718775,1760748639968,-874.55935733,0.00020787,2]
[391718776,1760748639978,-7268.08159833,0.000208,2]
[391718778,1760748639987,-168.3888056,0.00020822,2]
[391718780,1760748639996,-874.55935733,0.0002097,2]
[391718782,1760748640005,-190.69,0.00020983,2]
[391718784,1760748640014,-508.83,0.0002099,2]
[391718786,1760748640024,-7268.08159833,0.00021,2]
[391718788,1760748640034,-1680.0,0.00021001,2]
[391718790,1760748640043,-521.49,0.00021043,2]
[391718792,1760748640052,-1000.0,0.00021121,2]
[391718794,1760748640062,-500.0,0.00021121,2]
[391718796,1760748640071,-1000.0,0.00021121,2]
[391718798,1760748640081,-1000.0,0.00021121,2]
[391718800,1760748640090,-7268.08159833,0.000212,2]
[391718802,1760748640099,-1140.47,0.00021273,2]
[391718804,1760748640108,-874.55935735,0.00021327,2]
[391718806,1760748640118,-222.0,0.0002135,2]
[391718808,1760748640127,-174.61919141,0.0002137,2]
[391718810,1760748640137,-500.0,0.00021373,2]
[391718812,1760748640146,-500.0,0.00021373,2]
[391718814,1760748640155,-500.0,0.00021373,2]
[391718815,1760748640165,-500.0,0.00021373,2]
[391718816,1760748640179,-500.0,0.00021373,2]
[391718817,1760748640188,-500.0,0.00021389,2]
[391718818,1760748640197,-500.0,0.00021389,2]
[391718819,1760748640206,-500.0,0.00021389,2]
[391718820,1760748640215,-500.0,0.00021389,2]
[391718821,1760748640225,-500.0,0.00021389,2]
[391718822,1760748640234,-69549.27062729,0.0002139,2]
[391718823,1760748640243,-151.0,0.0002139,7]
[391718824,1760748640253,-151.0,0.0002139,7]
[391718825,1760748640263,-151.0,0.0002139,7]
[391718826,1760748640272,-151.0,0.0002139,7]
[391718827,1760748640282,-151.0,0.0002139,7]
[391718828,1760748640292,-227.73087,0.0002139,7]
[391718829,1760748640301,-151.0,0.0002139,7]
[391718830,1760748640311,-151.0,0.0002139,7]
[391718831,1760748640320,-151.0,0.0002139,7]
[391718832,1760748640329,-151.0,0.0002139,7]
[391718833,1760748640338,-151.0,0.0002139,7]
[391718834,1760748640347,-151.0,0.0002139,7]
[391718835,1760748640356,-406.24307,0.0002139,7]
[391718836,1760748640365,-406.24307,0.0002139,7]
[391718837,1760748640375,-406.24307,0.0002139,7]
[391718838,1760748640387,-406.24307,0.0002139,7]
[391718839,1760748640396,-356.042344,0.0002139,7]
[391718840,1760748640405,-356.042344,0.0002139,7]
[391718841,1760748640415,-233.83246274,0.0002139,2]
[391718842,1760748640424,-356.042344,0.0002139,7]
[391718843,1760748640433,-151.0,0.0002139,7]
[391718844,1760748640442,-151.0,0.0002139,7]
[391718845,1760748640452,-654.412914,0.0002139,7]
[391718846,1760748640461,-356.042344,0.0002139,7]
[391718847,1760748640471,-151.0,0.0002139,7]
[391718848,1760748640480,-654.412914,0.0002139,7]
[391718849,1760748640489,-192.669844,0.0002139,7]
[391718850,1760748640498,-654.412914,0.0002139,7]
[391718851,1760748640508,-654.412914,0.0002139,7]
[391718852,1760748640518,-4592.70576,0.0002139,2]
[391718853,1760748640527,-151.0,0.0002139,7]
[391718854,1760748640537,-151.0,0.0002139,7]
[391718855,1760748640546,-770.663063,0.0002139,7]
[391718856,1760748640555,-151.0,0.0002139,7]
[391718857,1760748640564,-158.718332,0.0002139,7]
[391718858,1760748640574,-770.663063,0.0002139,7]
[391718859,1760748640584,-575.333194,0.0002139,7]
[391718860,1760748640593,-158.718332,0.0002139,7]
[391718861,1760748640602,-151.0,0.0002139,7]
[391718862,1760748640612,-770.663063,0.0002139,7]
[391718863,1760748640621,-575.333194,0.0002139,7]
[391718864,1760748640631,-158.718332,0.0002139,7]
[391718865,1760748640640,-151.0,0.0002139,7]
[391718866,1760748640649,-151.0,0.0002139,7]
[391718867,1760748640659,-770.663063,0.0002139,7]
[391718868,1760748640668,-575.333194,0.0002139,7]
[391718869,1760748640678,-158.718332,0.0002139,7]
[391718870,1760748640687,-151.0,0.0002139,7]
[391718871,1760748640697,-575.333194,0.0002139,7]
[391718872,1760748640706,-504.011507,0.0002139,7]
[391718873,1760748640715,-504.011507,0.0002139,7]
[391718874,1760748640724,-504.011507,0.0002139,7]
[391718875,1760748640734,-504.011507,0.0002139,7]
[391718876,1760748640744,-151.0,0.0002139,7]
[391718878,1760748640754,-151.0,0.0002139,7]
[391718879,1760748640763,-182.910139,0.0002139,7]
[391718881,1760748640772,-151.0,0.0002139,7]
[391718882,1760748640782,-182.910139,0.0002139,7]
[391718883,1760748640791,-151.0,0.0002139,7]
[391718884,1760748640800,-151.0,0.0002139,7]
[391718885,1760748640809,-182.910139,0.0002139,7]
[391718886,1760748640818,-151.0,0.0002139,7]
[391718887,1760748640828,-151.0,0.0002139,7]
[391718888,1760748640837,-182.910139,0.0002139,7]
[391718889,1760748640846,-174.102871,0.0002139,7]
[391718890,1760748640855,-151.0,0.0002139,7]
[391718891,1760748640864,-216.561548,0.0002139,7]
[391718892,1760748640873,-151.0,0.0002139,7]
[391718893,1760748640882,-151.0,0.0002139,7]
[391718894,1760748640891,-174.102871,0.0002139,7]
[391718895,1760748640900,-151.0,0.0002139,7]
[391718896,1760748640909,-216.561548,0.0002139,7]
[391718897,1760748640918,-174.102871,0.0002139,7]
[391718898,1760748640933,-216.561548,0.0002139,7]
[391718899,1760748640953,-151.0,0.0002139,7]
[391718900,1760748640971,-174.102871,0.0002139,7]
[391718901,1760748640980,-216.561548,0.0002139,7]
[391718902,1760748640989,-151.0,0.0002139,7]
[391718903,1760748640998,-210.081592,0.0002139,7]
[391718904,1760748641008,-516.11555868,0.00021399,2]
[391718905,1760748641017,-7268.08159833,0.000214,2]
[391718906,1760748641027,-4135.92194979,0.00021473,2]
[391718907,1760748641036,-162.66,0.0002149,2]
[391718908,1760748641046,-30000.0,0.000215,5]
[391718909,1760748641056,-420.99715637,0.000215,2]
[391718910,1760748641065,-500.0,0.00021573,2]
[391718911,1760748641075,-500.0,0.00021573,2]
[391718912,1760748641084,-500.0,0.00021573,2]
[391718913,1760748641093,-500.0,0.00021573,2]
[391718914,1760748641102,-500.0,0.00021573,2]
[391718915,1760748641111,-151.0,0.00021573,7]
[391718916,1760748641121,-151.0,0.00021573,7]
[391718917,1760748641130,-151.0,0.00021573,7]
[391718918,1760748641139,-2095.779466,0.00021573,7]
[391718919,1760748641148,-151.0,0.00021573,7]
[391718920,1760748641157,-2095.779466,0.00021573,7]
[391718921,1760748641166,-151.0,0.00021573,7]
[391718922,1760748641175,-2095.779466,0.00021573,7]
[391718923,1760748641184,-620.557769,0.00021573,7]
[391718924,1760748641193,-2095.779466,0.00021573,7]
[391718925,1760748641202,-620.557769,0.00021573,7]
[391718926,1760748641212,-620.557769,0.00021573,7]
[391718927,1760748641221,-620.557769,0.00021573,7]
[391718928,1760748641231,-4208.305909,0.00021573,7]
[391718929,1760748641240,-151.0,0.00021573,7]
[391718930,1760748641249,-4208.305909,0.00021573,7]
[391718931,1760748641259,-151.0,0.00021573,7]
[391718932,1760748641268,-700.519192,0.00021573,7]
[391718933,1760748641277,-151.0,0.00021573,7]
[391718934,1760748641286,-151.0,0.00021573,7]
[391718935,1760748641295,-4208.305909,0.00021573,7]
[391718936,1760748641467,-151.0,0.00021573,7]
[391718937,1760748641477,-700.519192,0.00021573,7]
[391718938,1760748641486,-4208.305909,0.00021573,7]
[391718939,1760748641495,-151.0,0.00021573,7]
[391718940,1760748641504,-700.519192,0.00021573,7]
[391718941,1760748641513,-151.0,0.00021573,7]
[391718942,1760748641523,-151.0,0.00021573,7]
[391718943,1760748641532,-700.519192,0.00021573,7]
[391718944,1760748641541,-151.0,0.00021573,7]
[391718945,1760748641551,-151.0,0.00021573,7]
[391718946,1760748641561,-151.0,0.00021573,7]
[391718947,1760748641570,-151.0,0.00021573,7]
[391718948,1760748641580,-151.0,0.00021573,7]
[391718949,1760748641589,-693.867022,0.00021573,7]